Cogmind - Beta 13 @@@ ROGUE MODE // 2024.04.30 @ 04:06:40 Player: TurnLeft25 Result: Self-destructed Performance ------------- Evolutions (2) 1000 Regions Visited (7) 1400 Robots Destroyed (26) 130 Value Destroyed (773) 773 Prototype IDs (25) 500 Alien Tech Used (0) 0 Bonus (300) 300 TOTAL SCORE: 4103 Bonus ------- Aligned with FarCom 300 Cogmind --------- Core Integrity 470/550 Matter 222/300 Energy 30/100 System Corruption 0% Temperature Hot (207) Movement Core (400) Ox7 Location -8/Materials Parts ------- > --- POWER (1) -------- (None) > --- PROPULSION (2) --- (None) > --- UTILITY (5) ------ Improved Heat Sink Medium Storage Unit Signal Interpreter Improved Salvage Targeting Computer > --- WEAPON (3) ------- Guided Plasma Cannon Improved Assault Rifle > --- INVENTORY (10) --- Light Nuclear Core Carbon-fiber Leg Carbon-fiber Leg Makeshift Leg Makeshift Terrain Scanner Improved Power Shielding Reactive Plating Peak State ------------ > --- POWER ------------ Light Deuterium Engine > --- PROPULSION ------- Carbon-fiber Leg Carbon-fiber Leg > --- UTILITY ---------- Improved Heat Sink Medium Storage Unit Signal Interpreter Improved Salvage Targeting Computer Layered Light Armor Plating > --- WEAPON ----------- Heavy Laser Improved Assault Rifle Gauss Cannon > --- INVENTORY -------- Light Nuclear Core Carbon-fiber Leg Carbon-fiber Leg Makeshift Leg Makeshift Terrain Scanner Improved Power Shielding Reactive Plating Guided Plasma Cannon Rocket Launcher Rocket Launcher [Rating: 36] Favorites ----------- Power Ion Engine Engine Ion Engine Power Core Light Nuclear Core Propulsion Light Treads Treads Light Treads Leg Carbon-fiber Leg Utility Medium Storage Unit Device Sensor Array Storage Medium Storage Unit Processor Signal Interpreter Protection Propulsion Shielding Weapon Particle Gun Energy Gun Particle Gun Energy Cannon Guided Plasma Cannon Ballistic Gun Assault Rifle Ballistic Cannon Gauss Cannon Launcher Rocket Launcher Build | -11 -10 -10 -9 -9 -9 -8 -8 ------- Run | Yrd Mat Min Mat Min Exi Min Mat Slots Evolved 4 | . . . 2 . . . 2 Power . | . . . . . . . . Propulsion . | . . . . . . . . Utility 3 | . . . 2 . . . 1 Weapon 1 | . . . . . . . 1 Parts Attached 38 | 6 5 . 5 5 . 11 6 Power 6 | 1 1 . . 1 . 3 . Engine 5 | 1 1 . . 1 . 2 . Core 1 | . . . . . . 1 . Reactor . | . . . . . . . . Propulsion 5 | 2 . . . 2 . 1 . Treads 2 | 2 . . . . . . . Leg 3 | . . . . 2 . 1 . Wheel . | . . . . . . . . Hover . | . . . . . . . . Flight . | . . . . . . . . Utility 12 | 1 3 . 2 1 . 4 1 Device 6 | . 2 . . 1 . 3 . Storage 2 | 1 1 . . . . . . Processor 2 | . . . 1 . . 1 . Hackware . | . . . . . . . . Protection 2 | . . . 1 . . . 1 Artifact . | . . . . . . . . Weapon 15 | 2 1 . 3 1 . 3 5 Energy Gun 5 | 1 1 . 1 . . 1 1 Energy Cannon 1 | . . . . . . . 1 Ballistic Gun 3 | 1 . . 1 . . . 1 Ballistic Cannon 4 | . . . 1 1 . 2 . Launcher 2 | . . . . . . . 2 Special Weapon . | . . . . . . . . Impact Weapon . | . . . . . . . . Slashing Weapon . | . . . . . . . . Piercing Weapon . | . . . . . . . . Special Melee Weapon . | . . . . . . . . Unidentified Prototypes 2 | . . . . 1 . . 1 Parts Lost 16 | . 1 1 . 1 . 6 7 Power 3 | . . . . 1 . 1 1 Propulsion 3 | . . . . . . 1 2 Utility 2 | . . . . . . 2 . Weapon 8 | . 1 1 . . . 2 4 Highest Loss Streak 7 | . 1 1 . 1 . 3 7 To Critical Strikes . | . . . . . . . . Average Slot Usage (%) 98 | . 98 100 100 98 100 96 94 Engine 10 | . 14 14 11 10 11 7 8 Treads 13 | . 28 28 22 16 . . . Leg 9 | . . . . 5 22 20 16 Device 11 | . 13 14 11 11 11 10 9 Storage 11 | . 14 14 11 11 11 11 9 Processor 9 | . . . 11 11 11 18 18 Protection 4 | . . . 11 11 11 2 8 Energy Gun 10 | . 12 14 11 11 11 3 11 Ballistic Gun 5 | . 14 14 4 . . . 4 Ballistic Cannon 8 | . . . 6 11 11 18 8 Naked Turns . | . . . . . . . . Heaviest Build 34 | 14 21 21 25 25 25 32 34 Greatest Support 40 | 40 40 40 40 40 30 30 30 Greatest Overweight (x) 2 | . . . . . . 2 1 Average Overweight (x) . | . . . . . . . 1 Largest Inventory Capacity 10 | 8 10 10 10 10 10 10 10 Average Capacity 9 | 7 8 10 10 10 10 10 10 Most Carried 10 | 4 9 9 10 10 10 10 10 Average Carried 8 | 1 5 8 8 9 9 9 9 Final Capacity 10 | 8 10 10 10 10 10 10 10 Final Carried 10 | 1 8 9 10 10 10 10 7 Class Distribution -------------------- 80% | Mutant 14% | Skirmisher 4% | Scavenger-Mutant Dominant Class ---------------- Mutant | -10/Materials Mutant | -10/Mines Scavenger-Mutant | -9/Materials Mutant | -9/Mines Mutant | -9/Exiles Mutant | -8/Mines Skirmisher | -8/Materials Resources | -11 -10 -10 -9 -9 -9 -8 -8 ----------- Run | Yrd Mat Min Mat Min Exi Min Mat Matter Collected 984 | 231 167 . . 108 . 421 57 Remotely . | . . . . . . . . Salvage Created 829 | . 399 . . 52 . 288 90 Parts 51 | . 29 . . 7 . 10 5 Haulers Intercepted . | . . . . . . . . Recyclers Shooed 2 | . 1 . . 1 . . . Parts Field Recycled . | . . . . . . . . Retrieved Matter . | . . . . . . . . Parts Self-Destructed . | . . . . . . . . Prevented . | . . . . . . . . Kills | -11 -10 -10 -9 -9 -9 -8 -8 ------- Run | Yrd Mat Min Mat Min Exi Min Mat Combat Hostiles Destroyed 20 | . 6 . . 3 . 9 2 Guns 8 | . 6 . . 2 . . . Cannons 11 | . . . . 1 . 9 1 AOE 1 | . . . . . . . 1 Classes Destroyed 7 | . 5 . . . . . 2 Builder 2 | . 1 . . 1 . . . Recycler 2 | . 2 . . . . . . Watcher 2 | . 2 . . . . . . Swarmer 6 | . 3 . . 3 . . . Grunt 12 | . 3 . . . . 9 . Duelist 1 | . . . . . . . 1 Sentry 1 | . . . . . . . 1 Best Kill Streak 5 | . 5 . . 4 . 4 1 Combat Bots Only 4 | . 3 . . 3 . 4 1 Max Kills in Single Turn 2 | . 2 . . 1 . 1 1 Gunslinging . | . . . . . . . . Exploded 1 | . . . . . . . 1 Melee . | . . . . . . . . Uniques/NPCs Destroyed . | . . . . . . . . Combat | -11 -10 -10 -9 -9 -9 -8 -8 -------- Run | Yrd Mat Min Mat Min Exi Min Mat Hostile Shots Fired 216 | . 61 5 9 15 . 74 52 Missed 47 | . 16 2 . 7 . 16 6 Damage Taken 2570 | . 549 38 89 87 . 979 828 Core 361 | . 120 11 16 15 . 119 80 Absorbed by Shields . | . . . . . . . . Redirected to Shielding 53 | . . . 10 2 . 41 . Core Remaining (%) 69 | 100 . 47 . . . 62 . Volleys Fired 81 | . 31 . 1 6 . 31 12 Largest 3 | . 2 . 1 2 . 2 3 Hottest 140 | . 85 . 44 109 . 113 140 Shots Fired 149 | . 49 . 1 12 . 58 29 Gun 81 | . 49 . . 6 . 7 19 Cannon 66 | . . . 1 6 . 51 8 Launcher 2 | . . . . . . . 2 Special . | . . . . . . . . Kinetic 105 | . 31 . 1 6 . 51 16 Thermal 34 | . 10 . . 6 . 7 11 Explosive 2 | . . . . . . . 2 Electromagnetic 8 | . 8 . . . . . . Robot Hit Streak 8 | . 6 . . 3 . 8 5 Robot Miss Streak 4 | . 3 . . 4 . 3 3 Penetration Max . | . . . . . . . . Secondary Targets . | . . . . . . . . Shots Hit Robots 86 | . 28 . . 4 . 36 18 Core Hits 49 | . 18 . . 4 . 17 10 Critical Kills . | . . . . . . . . Critical Parts Destroyed . | . . . . . . . . Critical Strikes 7 | . . . . . . 7 . Burn 2 | . . . . . . 2 . Blast 5 | . . . . . . 5 . Melee Attacks . | . . . . . . . . Impact . | . . . . . . . . Slashing . | . . . . . . . . Piercing . | . . . . . . . . Sneak Attacks . | . . . . . . . . Combat Hostiles . | . . . . . . . . Follow-up Attacks . | . . . . . . . . Damage Inflicted 2235 | . 436 11 . 90 . 1037 661 Guns 837 | . 436 . . 68 . 103 230 Cannons 1134 | . . . . 22 . 928 184 Explosions 247 | . . . . . . . 247 Melee . | . . . . . . . . Ramming 17 | . . 11 . . . 6 . Kinetic 1442 | . 233 . . 22 . 928 259 Thermal 437 | . 111 . . 68 . 103 155 Explosive 247 | . . . . . . . 247 Electromagnetic 92 | . 92 . . . . . . Impact . | . . . . . . . . Slashing . | . . . . . . . . Piercing . | . . . . . . . . Highest Corruption . | . . . . . . . . Average Corruption . | . . . . . . . . Corruption Purged . | . . . . . . . . Corruption Blocked . | . . . . . . . . Overload Shots . | . . . . . . . . Overflow Damage 25 | . . . . . . 2 23 Projectiles 2 | . . . . . . 2 . Explosions 23 | . . . . . . . 23 Melee . | . . . . . . . . Knockbacks 14 | . . . . . . 12 2 Impact . | . . . . . . . . Kinetic 13 | . . . . . . 11 2 Secondary 1 | . . . . . . 1 . Self-Inflicted Damage 35 | . . . . . . . 35 Shots 1 | . . . . . . . 1 Rammed 2 | . . 2 . . . . . Targets Rammed 4 | . . 2 . . . 2 . Kicked 2 | . . . . . . 2 . Crushed . | . . . . . . . . Highest Temperature 500 | . 132 . . 164 . 500 244 Average Temperature 129 | . 47 . . 88 . 204 134 Received Heat Transfer 1221 | . 255 21 9 . . 558 378 Effects 10 | . . . . . . 10 . Shutdowns 1 | . . . . . . 1 . Energy Bleed 2 | . . . . . . 2 . Interference 3 | . . . . . . 3 . Matter Decay 2 | . . . . . . 2 . Damage (minor) 1 | . . . . . . 1 . Damage (major) 1 | . . . . . . 1 . Siege Activations . | . . . . . . . . Robots Corrupted . | . . . . . . . . Combat Hostiles . | . . . . . . . . Parts Fried 1 | . 1 . . . . . . Impact Corruptions . | . . . . . . . . Robots Melted . | . . . . . . . . Combat Hostiles . | . . . . . . . . Parts Melted 1 | . . . . 1 . . . Heat Transferred 1159 | . 259 . . 185 . 407 308 Parts Sabotaged . | . . . . . . . . Parts Stolen . | . . . . . . . . Parts Stripped . | . . . . . . . . Power Chain Reactions . | . . . . . . . . Alert | -11 -10 -10 -9 -9 -9 -8 -8 ------- Run | Yrd Mat Min Mat Min Exi Min Mat Peak Influence 182 | . 182 70 16 74 . 126 128 Initial 70 | . . 70 . 6 . . 35 Average 51 | . 89 53 5 71 . 34 55 Maximum Alert Level . | . . . . . . . . Low Security (%) 100 | 100 100 100 100 100 . 100 100 Level 1 . | . . . . . . . . Level 2 . | . . . . . . . . Level 3 . | . . . . . . . . Level 4 . | . . . . . . . . Level 5 . | . . . . . . . . High Security . | . . . . . . . . Max Security . | . . . . . . . . Squads Dispatched . | . . . . . . . . Investigation . | . . . . . . . . Extermination . | . . . . . . . . Reinforcement . | . . . . . . . . Assault . | . . . . . . . . Garrison . | . . . . . . . . Intercept . | . . . . . . . . Searches Triggered . | . . . . . . . . Construction Impeded . | . . . . . . . . Haulers Reinforced . | . . . . . . . . Active Scanning Responses . | . . . . . . . . Cargo Convoy Interrupts . | . . . . . . . . Stealth | -11 -10 -10 -9 -9 -9 -8 -8 --------- Run | Yrd Mat Min Mat Min Exi Min Mat Distress Signals 2 | . 1 . . . . . 1 Communications Jammed . | . . . . . . . . Distress Signals . | . . . . . . . . Times Spotted 39 | . 10 2 5 4 . 10 8 Peak Tracking Total 7 | . 3 2 5 3 . 3 7 Tactical Retreats 1 | . . . . . . 1 . Traps | -11 -10 -10 -9 -9 -9 -8 -8 ------- Run | Yrd Mat Min Mat Min Exi Min Mat Traps Triggered 1 | . 1 . . . . . . Indirectly . | . . . . . . . . Trap Hack Attempts . | . . . . . . . . Triggered . | . . . . . . . . Disarmed . | . . . . . . . . Reprogrammed . | . . . . . . . . Reused . | . . . . . . . . Traps Extracted . | . . . . . . . . Installed . | . . . . . . . . Triggered . | . . . . . . . . Machines | -11 -10 -10 -9 -9 -9 -8 -8 ---------- Run | Yrd Mat Min Mat Min Exi Min Mat Machines Disabled 2 | . . . . . . . 2 Max in Single Turn 2 | . . . . . . . 2 Machines Repaired . | . . . . . . . . Machines Dismantled . | . . . . . . . . Machines Sabotaged . | . . . . . . . . Overloaded Fab Kills . | . . . . . . . . Hacking | -11 -10 -10 -9 -9 -9 -8 -8 --------- Run | Yrd Mat Min Mat Min Exi Min Mat Machines Accessed 8 | . 3 . 2 1 2 . . Terminals 5 | . 3 . 2 . . . . Fabricators . | . . . . . . . . Repair Stations . | . . . . . . . . Recycling Units . | . . . . . . . . Scanalyzers . | . . . . . . . . Garrison Access . | . . . . . . . . Total Hacks 33 | . 6 . 2 1 24 . . Successful 32 | . 5 . 2 1 24 . . Failed 1 | . 1 . . . . . . Catastrophic . | . . . . . . . . Database Lockouts . | . . . . . . . . Manual 3 | . 1 . 1 . 1 . . Terminals 8 | . 6 . 2 . . . . Fabricators . | . . . . . . . . Repair Stations . | . . . . . . . . Recycling Units . | . . . . . . . . Scanalyzers . | . . . . . . . . Garrison Access . | . . . . . . . . Terminal Hacks 32 | . 5 . 2 1 24 . . Record 24 | . 1 . . . 23 . . Open Door 1 | . . . . 1 . . . Branch Access Points 2 | . 1 . 1 . . . . Terminal Index 1 | . 1 . . . . . . Alert Level 1 | . 1 . . . . . . Unreport Threat 1 | . . . 1 . . . . Zone Layout 1 | . 1 . . . . . . Derelict Proto ID Bank 1 | . . . . . 1 . . Fabricator Hacks . | . . . . . . . . Repair Station Hacks . | . . . . . . . . Recycling Unit Hacks . | . . . . . . . . Scanalyzer . | . . . . . . . . Garrison Access Hacks . | . . . . . . . . Unauthorized Hacks . | . . . . . . . . Terminals . | . . . . . . . . Fabricators . | . . . . . . . . Repair Stations . | . . . . . . . . Recycling Units . | . . . . . . . . Scanalyzers . | . . . . . . . . Garrison Access . | . . . . . . . . Data Cores Recovered . | . . . . . . . . Used . | . . . . . . . . Hacking Detections 2 | . 2 . . . . . . Full Trace Events . | . . . . . . . . Feedback Events . | . . . . . . . . Feedback Blocked . | . . . . . . . . Robot Schematics Acquired . | . . . . . . . . Robots Built . | . . . . . . . . Authchips . | . . . . . . . . Time . | . . . . . . . . Total Robot Build Rating . | . . . . . . . . Part Schematics Acquired . | . . . . . . . . Parts Built . | . . . . . . . . Authchips . | . . . . . . . . Time . | . . . . . . . . Total Part Build Rating . | . . . . . . . . Parts Repaired . | . . . . . . . . Time . | . . . . . . . . Parts Recycled . | . . . . . . . . Recycled Matter . | . . . . . . . . Retrieved Matter . | . . . . . . . . Retrieved Components . | . . . . . . . . Parts Scanalyzed . | . . . . . . . . Part Schematics Acquired . | . . . . . . . . Parts Damaged . | . . . . . . . . Bothacking | -11 -10 -10 -9 -9 -9 -8 -8 ------------ Run | Yrd Mat Min Mat Min Exi Min Mat Used RIF Installer . | . . . . . . . . Robots Hacked . | . . . . . . . . Non-combat . | . . . . . . . . Combat . | . . . . . . . . Robot Hacks Applied . | . . . . . . . . Relay Couplers Released . | . . . . . . . . Fabnet Peak Effective % . | . . . . . . . . Robots Rewired . | . . . . . . . . Allies Hacked . | . . . . . . . . Hacks Repelled . | . . . . . . . . Allies | -11 -10 -10 -9 -9 -9 -8 -8 -------- Run | Yrd Mat Min Mat Min Exi Min Mat Total Allies . | . . . . . . . . Largest Group . | . . . . . . . . Highest-Rated Group . | . . . . . . . . Highest-Rated Ally . | . . . . . . . . Total Orders . | . . . . . . . . Ally Attacks . | . . . . . . . . Total Damage . | . . . . . . . . Kills . | . . . . . . . . Allies Corrupted . | . . . . . . . . Allies Melted . | . . . . . . . . Intel | -11 -10 -10 -9 -9 -9 -8 -8 ------- Run | Yrd Mat Min Mat Min Exi Min Mat Robot Analysis Total . | . . . . . . . . Derelict Logs Recovered 2 | . . 1 . 1 . . . Drone Launches . | . . . . . . . . Drone Recoveries . | . . . . . . . . Exploration | -11 -10 -10 -9 -9 -9 -8 -8 ------------- Run | Yrd Mat Min Mat Min Exi Min Mat Turns Passed 2630 | 73 397 521 200 261 315 636 227 Spaces Moved 1539 | 44 186 324 116 151 262 369 87 Core 8 | 8 . . . . . . . Treads 762 | 36 186 324 116 100 . . . Legs 769 | . . . . 51 262 369 87 Wheels . | . . . . . . . . Hover . | . . . . . . . . Flight . | . . . . . . . . Fastest Speed 50 | 50 160 160 160 120 120 120 190 Average Speed 147 | 140 160 160 160 146 120 136 190 Slowest Speed 260 | 160 160 160 160 160 120 260 190 Overloaded Moves . | . . . . . . . . Propulsion Burnouts . | . . . . . . . . Robots Hopped 2 | . . . . . 2 . . Cave-ins Triggered . | . . . . . . . . Exploration Rate (%) 39 | 3 35 70 19 31 63 81 12 Regions Visited 7 Branch Regions 4 Pre-discovered Areas 2 | . . 1 . . 1 . . Known Exits Taken 5 | . 1 . 1 1 1 1 . Unknown Exits Taken 2 | 1 . 1 . . . . . Scrap Searched 5 | . . 1 . 2 . 2 . Spaces Dug 1 | . . . 1 . . . . Terrain Destroyed 28 | . . . 1 3 . 17 7 Melee . | . . . . . . . . Projectile 22 | . . . 1 3 . 17 1 AOE 6 | . . . . . . . 6 Terrain Rammed . | . . . . . . . . Walls Destroyed . | . . . . . . . . Machines Disabled . | . . . . . . . . Actions | -11 -10 -10 -9 -9 -9 -8 -8 --------- Run | Yrd Mat Min Mat Min Exi Min Mat Total 1763 | 56 238 326 132 180 261 445 125 Wait 53 | . . . . 13 . 22 18 Move 1528 | 43 185 323 115 150 257 368 87 Hop 2 | . . . . . 2 . . Pick Up 38 | 7 13 1 7 2 1 6 1 Fast Attach 7 | . . . . 2 . 3 2 Attach 24 | 6 3 . 4 2 . 5 4 Detach . | . . . . . . . . Swap 7 | . 2 . 1 1 . 3 . Drop 19 | . 4 . 4 4 1 5 1 Fire 81 | . 31 . 1 6 . 31 12 Melee . | . . . . . . . . Ram . | . . . . . . . . Kick 2 | . . . . . . 2 . Crush 2 | . . 2 . . . . . Escape Stasis . | . . . . . . . . Rewire . | . . . . . . . . Trap . | . . . . . . . . Miscellaneous . | . . . . . . . . Route ------- -11/Scrapyard -10/Materials -10/Mines -9/Materials (discovered 4 exits: *Min x2 / Sto x2) -9/Mines -9/Exiles -8/Mines -8/Materials History --------- Turn | Location | Event 16 | -11/Scrapyard | Discovered new exit (range 14) 74 | -11/Scrapyard | Entered Materials 302 | -10/Materials | Build established: Mutant 422 | -10/Materials | Identified exit to Mines 471 | -10/Materials | Entered Mines 480 | -10/Mines | Assembled infested the area 891 | -10/Mines | Received a Rocket Launcher from a helpful Derelict 980 | -10/Mines | Learned location of Zion (-6) 983 | -10/Mines | Discovered new exit (range 7) 991 | -10/Mines | Core integrity fell below 50% 992 | -10/Mines | Entered Materials 992 | -9/Materials | Evolved 2 slots: Utility x2 1021 | -9/Materials | Identified exit to Mines 1021 | -9/Materials | Identified exit to Storage 1192 | -9/Materials | Entered Mines 1257 | -9/Mines | Found a damaged Exp. Sensor Array with a note attached 1261 | -9/Mines | Found Prototype Device 1261 | -9/Mines | Identified Exp. Sensor Array 1362 | -9/Mines | Met a Derelict who couldn't figure out how to use a Trap Extractor 1438 | -9/Mines | Learned Materials trap positions 1449 | -9/Mines | Deemed a non-threat by the Exiles lab entrance 1449 | -9/Mines | Discovered new exit (range 5) 1452 | -9/Mines | Identified exit to Exiles 1453 | -9/Mines | Entered Exiles 1481 | -9/Exiles | Met 8R-AWN 1503 | -9/Exiles | Met EX-HEX 1541 | -9/Exiles | Met EX-BIN 1579 | -9/Exiles | Aligned with FarCom system 1581 | -9/Exiles | Given EX-Vault access code 1609 | -9/Exiles | Opened EX-Vault 1620 | -9/Exiles | Found Gui. Plasma Cannon 1647 | -9/Exiles | Warned to stay clear of 0b10 Research branches 1660 | -9/Exiles | Exiles lab attacked by MAIN.C 1757 | -9/Exiles | Discovered new exit (range 10) 1767 | -9/Exiles | Identified exit to Mines 1768 | -9/Exiles | Left Exiles lab with Gui. Plasma Cannon 1768 | -9/Exiles | Entered Mines 1968 | -8/Mines | Lost 3 parts (1p1u1w) 2394 | -8/Mines | Discovered new exit (range 9) 2403 | -8/Mines | Identified exit to Materials 2404 | -8/Mines | Entered Materials 2404 | -8/Materials | Evolved 2 slots: Utility x1, Weapon x1 2405 | -8/Materials | Loaded intel: 22 trap records 2631 | -8/Materials | Self-destructed Last Messages --------------- 02546_ Acquired 5 matter. 02599_ W-25 Informer sends out distress signal. 02604_ L-31 Rogue knocked back. 02604_ Carbon-fiber Leg destroyed. 02608_ L-31 Rogue knocked back. 02610_ Gauss Cannon destroyed. 02612_ Lyr. Light Armor Plating severed. 02613_ U-05 Engineer builds a Door. 02615_ Destroyed Melee Analysis Suite. 02615_ L-31 Rogue destroyed. 02615_ Electrolysis Chamber disabled. 02615_ Lgt. Deuterium Engine destroyed. 02616_ Rocket Launcher destroyed. 02617_ U-05 Engineer builds a Wall. 02619_ Destroyed Imp. Hover Unit. 02619_ Hvy. Laser destroyed. 02622_ Rocket Launcher destroyed. Guided weapons can set waypoints, but cannot fire with other weapons in the same volley. 02627_ Carbon-fiber Leg destroyed. Map ----- +----------------------------------------------------+ | ?????????????????????????????????????????????????? | | ?????????????????????????????????????????????????? | | ?????????????????????????????????????????????????? | | ?????????????????????????????????????????????????? | | ?????????????????????????????????????????????????? | | ?????????????????????????????????????????????????? | | ?????????????????????????????????????????????????? | | ?????????????????????????????????????????????????? | | ?????????????????????????????????????????????????? | | ?????????????????????????????????????????????????? | | ?????????????????????????????????????????????????? | | ?????????????????????????????????????????????????? | | ?????????????????????????????#???????????????????? | | ???????????????????????????? #???????????????????? | | ???????????????????????????? #???????????????????? | | ???????????????????????????? #???????????????????? | | ???????????????????????????? #???????????????????? | | ?????????????????????????###+####+#######????????? | | ?????????????????????????# ^^ ???????? | | ?????????????????????????# g ^^ /???????? | | ???????????????????????### ^^ w ???????? | | ?????????????????????### ###+#??????????????? | | ?????????????????????# gg ?????????????????? | | ?????????????????????# g #??????????????????? | | ?????????????????????# #??????????????????? | | ?????????????????????# @%! # """ ????? ????? | | ?????????????????????# !! """ ?????g ????? | | ?????????????????????# !! # """ ????? ????? | | ?????????????????????# ##??##?????# +???? | | ?????????????????????# " * !#?????????+ #???? | | ?????????????????????# = ##?????????# #???? | | ?????????????????????########+#??????????# #???? | | ????????????????????????????# #??????????# #???? | | ????????????????????????????# #??????????# #???? | | ????????????????????????????# #??????????# #???? | | ?????????????????????######## #????###+#?# #???? | | ?????????????????????# [ # #?? ## ### #???? | | ?????????????????????# # # # #???? | | ?????????????????????#""" + + # #???? | | ?????????????????????#""" # # !# ! !!]#???? | | ?????????????????????#""" # #??#### ! ]##### | | ?????????????????????# # ####### !]]# | | ????????????????????######### # | | ????????????????????# #### # | | ????????????????????# = + + "" | | ????????????????????# ########+######## # "" | | ????????????????????# ?????? ?????# # "" | | ????????????????????# ????? ???######### | | ????????????????????# ???# ?????????? | | ????????????????????# ????# #???????? | +----------------------------------------------------+ Best States ------------- Heat Dissipation 45 Energy Generation 14 Energy Capacity 275 Matter Stores 300 Matter Capacity 300 Sight Range 16 Robot Scan Range 20 Terrain Scan Density 10 Armor Coverage 150 Propulsion Shielding 33 Evasion (%) 55 Recoil Reduction 2 Salvage Targeting 2 Item Schematics ----------------- None Robot Schematics ------------------ None Fabricated ------------ Nothing Alien Tech Used ----------------- None Achievements -------------- None Challenges ------------ None Game ------ Seed GunWeldingTerrabomb Manual? 0 Play Time 00:16:23 Cumulative 21.3 hours Start 2024.04.29 @ 11:45:10 End 2024.04.30 @ 04:06:40 Sessions 5 Manual Loads 0 Difficulty Rogue Special Mode None Game No. 35 Rogue 35 Adventurer 0 Explorer 0 Win Type - Total 0 Types 0/0/0/0/0/0/0/0/0 Lore% 20 Gallery% 30 Achievement% 23 Wizard Run 0 Options --------- Layout 1 ASCII 0 Keyboard 0 Movement Mouse Keybinds 0 Fullscreen 1 Font 24/Smallcaps Map View 50x40 Zoom Use 0% Tactical HUD 1 Map Filters NONE Filters NONE Steam 1 RUN: 1357d77e-5de6-47ea-8be8-42edc935e1c4